Cogmind - Beta 17 @@@ ROGUE MODE // 2026.07.04 @ 18:07:06 Player: kite Result: Self-destructed Performance ------------- Evolutions (2) 1000 Regions Visited (9) 1800 Robots Destroyed (164) 820 Value Destroyed (6371) 6371 Prototype IDs (24) 480 Alien Tech Used (0) 0 Bonus (1898) 1898 TOTAL SCORE: 12369 Bonus ------- High Alert Combat Kills 1035 Follower Combat Kills 363 Entered Garrisons 200 Aligned with FarCom 300 Cogmind --------- Core Integrity 2/550 Matter 38/300 Energy 154/160 System Corruption 4% Temperature Cool (62) Movement Walking (122) Location -8/Materials Parts ------- > --- POWER (1) -------- Light Nuclear Core > --- PROPULSION (5) --- Aluminum Leg Aluminum Leg Aluminum Leg Carbon-fiber Leg Titanium Leg > --- UTILITY (3) ------ High-capacity Storage Unit Improved Melee Analysis Suite Layered Light Armor Plating > --- WEAPON (2) ------- Scythe Axe > --- INVENTORY (20) --- Improved Ion Engine Aluminum Leg Carbon-fiber Leg Potential Leg Potential Leg Wheel Armored Wheel High-capacity Storage Unit Light Armor Plating Hardened Medium Armor Plating Hardened Medium Armor Plating Hardened Medium Armor Plating Layered Light Armor Plating Layered Light Armor Plating Relay Coupler [Grunt] (22) Grenade Launcher Grenade Launcher Rocket Launcher Mini Grenade Launcher Peak State ------------ > --- POWER ------------ Light Nuclear Core > --- PROPULSION ------- Aluminum Leg Aluminum Leg Carbon-fiber Leg Titanium Leg Flexi-carbon Leg > --- UTILITY ---------- High-capacity Storage Unit Improved Melee Analysis Suite Layered Light Armor Plating > --- WEAPON ----------- Scythe Axe > --- INVENTORY -------- Improved Ion Engine Light Nuclear Core Light Treads Potential Leg Potential Leg Wheel Armored Wheel High-capacity Storage Unit Light Armor Plating Hardened Light Armor Plating Hardened Medium Armor Plating Hardened Medium Armor Plating Hardened Medium Armor Plating Layered Light Armor Plating Layered Light Armor Plating Relay Coupler [Grunt] Grenade Launcher Grenade Launcher Rocket Launcher Mini Grenade Launcher [Rating: 36] Favorites ----------- Power Light Ion Engine Engine Light Ion Engine Power Core Light Nuclear Core Propulsion Armored Wheel Treads Light Treads Leg Aluminum Leg Wheel Armored Wheel Utility High-capacity Storage Unit Storage High-capacity Storage Unit Processor Improved Melee Analysis Suite Hackware System Shield Protection Light Armor Plating Weapon Scythe Energy Gun Small Laser Energy Cannon Advanced Beam Cannon Ballistic Gun Assault Rifle Ballistic Cannon Advanced Assault Cannon Launcher Mini Grenade Launcher Slashing Weapon Scythe Build | -11 -10 -10 -9 -9 -9 -8 -8 -8 -8 ------- Run | Yrd Mat Min Mat Min Exi Min Mat Gar Mat Slots Evolved 4 | . . . 2 . . . 2 . . Power . | . . . . . . . . . . Propulsion 3 | . . . 2 . . . 1 . . Utility 1 | . . . . . . . 1 . . Weapon . | . . . . . . . . . . Parts Attached 81 | 6 11 . 18 4 . 2 10 21 9 Power 8 | 1 1 . 1 1 . . . 2 2 Engine 5 | 1 1 . 1 . . . . 1 1 Core 3 | . . . . 1 . . . 1 1 Reactor . | . . . . . . . . . . Propulsion 34 | 2 4 . 7 . . 1 4 10 6 Treads 10 | 2 2 . 2 . . . 2 2 . Leg 16 | . 2 . . . . . . 8 6 Wheel 8 | . . . 5 . . 1 2 . . Hover . | . . . . . . . . . . Flight . | . . . . . . . . . . Utility 17 | 1 3 . 2 1 . . 3 6 1 Device . | . . . . . . . . . . Storage 3 | 1 1 . 1 . . . . . . Processor 2 | . . . . . . . 1 1 . Hackware 2 | . . . . . . . 1 1 . Protection 10 | . 2 . 1 1 . . 1 4 1 Artifact . | . . . . . . . . . . Weapon 22 | 2 3 . 8 2 . 1 3 3 . Energy Gun 6 | 2 2 . 2 . . . . . . Energy Cannon 1 | . . . 1 . . . . . . Ballistic Gun 7 | . 1 . 4 . . 1 1 . . Ballistic Cannon 1 | . . . . 1 . . . . . Launcher 4 | . . . 1 1 . . 2 . . Special Weapon . | . . . . . . . . . . Impact Weapon . | . . . . . . . . . . Slashing Weapon 3 | . . . . . . . . 3 . Piercing Weapon . | . . . . . . . . . . Special Melee Weapon . | . . . . . . . . . . Unidentified Prototypes 1 | . . . 1 . . . . . . Parts Lost 31 | . 6 . 4 2 . 1 2 13 3 Power 6 | . 1 . 1 1 . . . 2 1 Propulsion 14 | . 1 . 1 . . 1 1 8 2 Utility 5 | . 1 . . 1 . . 1 2 . Weapon 6 | . 3 . 2 . . . . 1 . Highest Loss Streak 5 | . 3 . 2 2 . 1 2 5 1 To Critical Strikes 1 | . . . . . . . . 1 . Average Backups 14 | 1 6 10 10 17 19 18 19 16 18 Power . | . . 1 . . . . . . 1 Propulsion 4 | . 1 5 3 4 5 6 7 6 5 Utility 4 | . 2 3 4 6 6 6 4 4 7 Weapon 4 | . 2 1 1 6 7 6 8 6 4 Tool/Special . | . . . . . . . . . . Unused Backups 26 | . 4 . 3 . 3 1 1 . 14 Power 1 | . . . . . . . . . 1 Propulsion 10 | . 2 . 2 . 1 . . . 5 Utility 11 | . . . 1 . 2 . 1 . 7 Weapon 4 | . 2 . . . . 1 . . 1 Tool/Special . | . . . . . . . . . . Average Slot Usage (%) 96 | . 96 100 98 99 77 98 93 96 99 Engine 5 | . 12 14 10 6 . . . 1 . Core 4 | . . . . 4 11 11 9 7 8 Treads 10 | . 27 28 10 . . . 6 9 . Leg 11 | . . . 3 . . . . 28 44 Wheel 17 | . . . 29 44 44 42 34 5 . Storage 10 | . 15 14 11 11 11 11 9 9 9 Processor 2 | . . . . . . . 3 7 9 Protection 10 | . 11 14 11 10 11 11 8 8 9 Energy Gun 6 | . 25 14 11 . . . . . . Energy Cannon 1 | . . . 1 7 . 9 . . . Ballistic Gun 4 | . 2 14 8 7 . 1 8 1 . Ballistic Cannon 1 | . . . . 7 . 11 8 . . Slashing Weapon 5 | . . . . . . . . 14 17 Peak Build Rating 36 | 6 8 8 18 23 24 24 32 32 36 Average Rating 20 | 4 6 8 14 20 16 23 29 27 33 On Entrance 17 | . 6 8 8 17 23 24 24 32 29 Avg Prop Armor Cover (%) 13 | . . . 4 . . . 10 18 . Naked Turns . | . . . . . . . . . . Heaviest Build 60 | 11 22 19 55 59 59 59 58 60 58 Greatest Support 72 | 40 40 40 60 46 46 52 68 60 72 Greatest Overweight (x) 4 | . 1 . 1 1 1 1 1 4 1 Average Overweight (x) . | . . . . 1 1 1 . . . Largest Inventory Capacity 20 | 8 10 10 20 20 20 20 20 20 20 Average Capacity 16 | 6 9 10 11 20 20 20 20 20 20 Most Carried 20 | 2 10 10 14 20 20 20 20 20 20 Average Carried 14 | 1 6 10 10 17 19 18 19 16 18 Final Capacity 20 | 8 10 10 20 20 20 20 20 20 20 Final Carried 20 | 2 10 10 14 20 18 20 20 15 19 Class Distribution -------------------- 68% | Mutant 26% | Scavenger-Gladiator 4% | Scavenger-Mutant Dominant Class ---------------- Mutant | -10/Materials Mutant | -10/Mines Mutant | -9/Materials Mutant | -9/Mines Mutant | -9/Exiles Mutant | -8/Mines Mutant | -8/Materials Scavenger-Gladiator | -8/Garrison Scavenger-Gladiator | -8/Materials Resources | -11 -10 -10 -9 -9 -9 -8 -8 -8 -8 ----------- Run | Yrd Mat Min Mat Min Exi Min Mat Gar Mat Matter Collected 2361 | 126 265 . 263 247 61 145 422 658 174 Remotely . | . . . . . . . . . . Salvage Created 4715 | . 1078 . 1245 380 . 221 495 775 521 Parts 317 | . 68 . 93 20 . 11 42 31 52 Haulers Intercepted 6 | . 2 . 3 . . . 1 . . Recyclers Shooed 6 | . 3 . . 1 . 1 . . 1 Parts Field Recycled . | . . . . . . . . . . Retrieved Matter . | . . . . . . . . . . Parts Self-Destructed . | . . . . . . . . . . Prevented . | . . . . . . . . . . Parts Restored . | . . . . . . . . . . Kills | -11 -10 -10 -9 -9 -9 -8 -8 -8 -8 ------- Run | Yrd Mat Min Mat Min Exi Min Mat Gar Mat Combat Hostiles Destroyed 123 | . 22 . 24 9 . 6 21 27 14 Melee 17 | . . . . . . . . 11 6 Guns 33 | . 19 . 12 . . . 2 . . Cannons 15 | . . . 1 2 . 6 6 . . AOE 57 | . 3 . 10 7 . . 13 16 8 Classes Destroyed 13 | . 7 . 3 1 . . . 1 1 Worker 11 | . 5 . 3 2 . . 1 . . Builder 7 | . 1 . 1 . . . . . 5 Tunneler 4 | . . . . 2 . . 1 . 1 Hauler 6 | . 2 . 3 . . . 1 . . Recycler 5 | . 1 . 1 2 . 1 . . . Operator 5 | . . . 1 . . . 3 . 1 Watcher 3 | . 1 . 2 . . . . . . Swarmer 33 | . 6 . 4 4 . 4 8 5 2 Grunt 62 | . 16 . 11 2 . 2 8 15 8 Brawler 5 | . . . 3 1 . . 1 . . Sentry 18 | . . . 6 2 . . 4 3 3 Specialist 1 | . . . . . . . . . 1 Programmer 4 | . . . . . . . . 4 . Best Kill Streak 14 | . 4 . 9 4 . 4 14 5 8 Combat Bots Only 13 | . 4 . 7 4 . 4 13 5 5 Max Kills in Single Turn 4 | . 2 . 4 4 . 1 3 3 3 Gunslinging 1 | . . . 1 . . . . . . Exploded 4 | . 1 . 2 4 . . 3 3 2 Melee 1 | . . . . . . . . 1 1 Uniques/NPCs Destroyed . | . . . . . . . . . . Combat | -11 -10 -10 -9 -9 -9 -8 -8 -8 -8 -------- Run | Yrd Mat Min Mat Min Exi Min Mat Gar Mat Hostile Shots Fired 513 | . 94 . 83 27 . 33 48 164 64 Missed 148 | . 25 . 28 10 . 9 15 46 15 Hits 365 | . 69 . 55 17 . 24 33 118 49 Projectile 365 | . 69 . 55 17 . 24 33 118 49 Critical Strikes 16 | . 1 . 2 . . . 1 9 3 Damage Taken 5360 | . 800 . 804 197 . 225 525 1926 883 Core 762 | . 104 . 103 . . 7 44 229 275 Absorbed by Shields . | . . . . . . . . . . Core Remaining (%) 76 | 100 . 58 . . . 72 . . . Volleys Fired 261 | . 72 1 62 17 . 16 45 29 19 Largest 2 | . 2 2 2 2 . 2 2 1 1 Hottest 108 | . 80 60 91 108 . 108 65 33 33 Shots Fired 429 | . 140 2 110 32 . 26 71 30 18 Gun 282 | . 140 2 101 13 . . 26 . . Cannon 72 | . . . 2 16 . 26 28 . . Launcher 75 | . . . 7 3 . . 17 30 18 Special . | . . . . . . . . . . Kinetic 124 | . 8 1 25 21 . 15 54 . . Thermal 76 | . 50 1 6 8 . 11 . . . Explosive 75 | . . . 7 3 . . 17 30 18 Electromagnetic 154 | . 82 . 72 . . . . . . Robot Hit Streak 12 | . 12 . 11 7 . 4 11 6 4 Robot Miss Streak 4 | . 4 . 4 3 . 2 4 2 3 Penetration Max . | . . . . . . . . . . Secondary Targets 7 | . 3 . 4 . . . . . . Max Gunslinging Chain 1 | . 1 . 1 . . . . . . Shots Hit Robots 296 | . 83 . 64 19 . 15 46 44 25 Core Hits 262 | . 51 1 48 17 . 9 45 52 39 Critical Kills 1 | . . . . . . . 1 . . Critical Parts Destroyed . | . . . . . . . . . . Critical Strikes 12 | . 1 . . 2 . 2 1 5 1 Destroy 1 | . . . . . . . 1 . . Blast 4 | . . . . 2 . 2 . . . Corrupt 1 | . 1 . . . . . . . . Sever 6 | . . . . . . . . 5 1 Melee Attacks 90 | . . . . . . . . 64 26 Impact . | . . . . . . . . . . Slashing 90 | . . . . . . . . 64 26 Piercing . | . . . . . . . . . . Sneak Attacks 4 | . . . . . . . . 2 2 Combat Hostiles . | . . . . . . . . . . Follow-up Attacks 8 | . . . . . . . . 5 3 Damage Inflicted 11700 | . 1506 24 1882 607 . 418 2146 2997 2120 Guns 2415 | . 1051 24 864 118 . . 358 . . Cannons 1259 | . . . 21 238 . 418 582 . . Explosions 6252 | . 455 . 997 251 . . 1206 1963 1380 Melee 1771 | . . . . . . . . 1031 740 Ramming 3 | . . . . . . . . 3 . Kinetic 1641 | . 35 12 147 233 . 274 940 . . Thermal 1506 | . 777 12 450 123 . 144 . . . Explosive 5389 | . . . 589 251 . . 1206 1963 1380 Electromagnetic 1390 | . 694 . 696 . . . . . . Impact . | . . . . . . . . . . Slashing 1771 | . . . . . . . . 1031 740 Piercing . | . . . . . . . . . . Highest Corruption 4 | . . . 1 1 1 1 . 4 4 Average Corruption 2 | . . . 1 1 1 1 . 3 4 Corruption Purged . | . . . . . . . . . . Corruption Blocked . | . . . . . . . . . . Effects 33 | . . . 3 8 1 2 . 6 13 Message Errors 5 | . . . . 1 1 . . 1 2 Matter Fused 8 | . . . 1 2 . 1 . 1 3 Heat Flow Errors 2 | . . . . . . . . 1 1 Energy Discharges 5 | . . . . 3 . . . . 2 Data Loss (minor) 3 | . . . 1 . . . . 1 1 Data Loss (major) 2 | . . . . . . . . . 2 Misfires 2 | . . . . 1 . . . 1 . Alerts 4 | . . . 1 1 . . . 1 1 Weapon Failures 2 | . . . . . . 1 . . 1 Overload Shots . | . . . . . . . . . . Overflow Damage 411 | . 14 . 109 . . 6 53 140 89 Projectiles 6 | . . . . . . 6 . . . Explosions 246 | . 14 . 109 . . . 53 55 15 Melee 159 | . . . . . . . . 85 74 Knockbacks 15 | . . . . . . 8 7 . . Impact . | . . . . . . . . . . Kinetic 12 | . . . . . . 6 6 . . Secondary 3 | . . . . . . 2 1 . . Self-Inflicted Damage 556 | . 74 . 177 . . . 30 188 87 Shots 19 | . 3 . 4 . . . 1 8 3 Rammed 4 | . 2 . . . . . . 2 . Targets Rammed 4 | . 2 . . . . . . 2 . Kicked . | . . . . . . . . . . Crushed . | . . . . . . . . . . Highest Temperature 385 | . 292 9 385 192 . 324 66 100 166 Average Temperature 93 | . 94 6 101 81 . 152 31 24 65 Received Heat Transfer 1863 | . 351 . 195 39 . 36 207 684 351 Effects 7 | . 2 . 3 . . 2 . . . Energy Bleed 6 | . 2 . 3 . . 1 . . . Interference 1 | . . . . . . 1 . . . Siege Activations . | . . . . . . . . . . Martial Activations . | . . . . . . . . . . Shielding Activations . | . . . . . . . . . . Robots Disrupted . | . . . . . . . . . . Combat Hostiles . | . . . . . . . . . . Robots Corrupted 1 | . . . 1 . . . . . . Combat Hostiles 1 | . . . 1 . . . . . . Parts Fried 5 | . 4 . 1 . . . . . . Impact Corruptions . | . . . . . . . . . . Robots Melted . | . . . . . . . . . . Combat Hostiles . | . . . . . . . . . . Parts Melted . | . . . . . . . . . . Heat Transferred 2268 | . 1275 25 487 222 . 259 . . . Parts Sabotaged . | . . . . . . . . . . Parts Stolen . | . . . . . . . . . . Parts Stripped . | . . . . . . . . . . Power Chain Reactions 12 | . 7 . 5 . . . . . . Alert | -11 -10 -10 -9 -9 -9 -8 -8 -8 -8 ------- Run | Yrd Mat Min Mat Min Exi Min Mat Gar Mat Maximum Alert Level 5 | . 1 . 2 1 . . 2 5 4 Low Security (%) 38 | 100 29 100 69 63 . 100 42 . . Level 1 21 | . 70 . 13 36 . . 34 2 . Level 2 9 | . . . 17 . . . 22 18 . Level 3 14 | . . . . . . . . 10 99 Level 4 12 | . . . . . . . . 49 . Level 5 4 | . . . . . . . . 18 . High Security . | . . . . . . . . . . Max Security . | . . . . . . . . . . Peak Influence 1873 | . 340 115 461 252 . 95 506 1873 1094 Initial 912 | . . 115 . 162 . . 33 316 912 Average 488 | . 218 30 153 177 . 67 214 1155 870 Influence Increases 4925 | . 692 . 846 286 . 165 687 1727 522 Destroy 0b10 Robot/C 2720 | . 440 . 520 180 . 120 420 760 280 Destroy 0b10 Robot/NC 205 | . 50 . 55 30 . 5 30 . 35 Destroy Leader 438 | . 76 . 140 20 . 20 92 30 60 Allied During Kill 153 | . . . 32 14 . . . 107 . Successful Hack 47 | . 12 . 9 . . . 5 . 21 Select Force Hacks 60 | . 60 . . . . . . . . Disable Machine 195 | . 15 . 30 30 . . 60 30 30 Anti-Garrison Action 600 | . . . . . . . . 600 . Destroy Structure 417 | . 24 . 60 12 . 5 80 155 81 Partial Spotted 30 | . 15 . . . . . . . 15 Lose Combat Pursuer 60 | . . . . . . 15 . 45 . Influence Decreases 3831 | . 394 298 429 601 102 80 285 341 1301 Entered New Map 1724 | . . 183 . 255 102 . 52 171 961 Time Decay 1659 | . 334 115 291 326 . 70 213 . 310 Lost Part 310 | . 60 . 40 20 . 10 20 130 30 Lost Ally 100 | . . . 60 . . . . 40 . Purge Threat 38 | . . . 38 . . . . . . Squads Dispatched 11 | . 5 . 2 . . . 1 . 3 Investigation 4 | . 3 . 1 . . . . . . Extermination . | . . . . . . . . . . Reinforcement 7 | . 2 . 1 . . . 1 . 3 Assault . | . . . . . . . . . . Garrison . | . . . . . . . . . . Intercept . | . . . . . . . . . . Searches Triggered . | . . . . . . . . . . Construction Impeded 1 | . . . . . . . . . 1 Haulers Reinforced . | . . . . . . . . . . Active Scanning Responses . | . . . . . . . . . . Cargo Convoy Interrupts . | . . . . . . . . . . Stealth | -11 -10 -10 -9 -9 -9 -8 -8 -8 -8 --------- Run | Yrd Mat Min Mat Min Exi Min Mat Gar Mat Distress Signals 8 | . 1 . 2 . . 1 3 . 1 Communications Jammed . | . . . . . . . . . . Distress Signals . | . . . . . . . . . . Times Spotted 168 | . 31 . 37 9 . 6 26 38 21 Peak Tracking Total 10 | . 5 . 6 4 . 3 10 6 6 Tactical Retreats 4 | . . . . . . 1 . 3 . Traps | -11 -10 -10 -9 -9 -9 -8 -8 -8 -8 ------- Run | Yrd Mat Min Mat Min Exi Min Mat Gar Mat Traps Triggered 5 | . 1 . 2 . . . . 2 . Indirectly . | . . . . . . . . . . Trap Hack Attempts . | . . . . . . . . . . Triggered . | . . . . . . . . . . Disarmed . | . . . . . . . . . . Reprogrammed . | . . . . . . . . . . Reused . | . . . . . . . . . . Traps Extracted . | . . . . . . . . . . Installed . | . . . . . . . . . . Triggered . | . . . . . . . . . . Machines | -11 -10 -10 -9 -9 -9 -8 -8 -8 -8 ---------- Run | Yrd Mat Min Mat Min Exi Min Mat Gar Mat Machines Disabled 24 | . 1 . 2 3 . . 4 12 2 Max in Single Turn 1 | . 1 . 1 1 . . 1 1 1 Garrison Relay 9 | . . . . . . . . 9 . Machines Repaired . | . . . . . . . . . . Machines Dismantled . | . . . . . . . . . . Machines Sabotaged . | . . . . . . . . . . Overloaded Fab Kills . | . . . . . . . . . . Hacking | -11 -10 -10 -9 -9 -9 -8 -8 -8 -8 --------- Run | Yrd Mat Min Mat Min Exi Min Mat Gar Mat Machines Accessed 20 | . 4 . 6 1 2 . 2 2 3 Terminals 14 | . 2 . 6 . . . 1 2 3 Fabricators . | . . . . . . . . . . Repair Stations . | . . . . . . . . . . Recycling Units 2 | . 2 . . . . . . . . Scanalyzers . | . . . . . . . . . . Garrison Access 1 | . . . . . . . 1 . . Total Hacks 45 | . 8 . 16 1 5 . 5 3 7 Successful 25 | . 5 . 7 1 5 . 2 2 3 Failed 20 | . 3 . 9 . . . 3 1 4 Catastrophic 5 | . . . 2 . . . 1 1 1 Database Lockouts . | . . . . . . . . . . Manual 35 | . 9 . 14 . 1 . 4 . 7 Terminals 36 | . 6 . 16 . . . 4 3 7 Fabricators . | . . . . . . . . . . Repair Stations . | . . . . . . . . . . Recycling Units 2 | . 2 . . . . . . . . Scanalyzers . | . . . . . . . . . . Garrison Access 1 | . . . . . . . 1 . . Terminal Hacks 12 | . 1 . 3 1 5 . . 2 . Record 4 | . . . . . 4 . . . . Part Schematic 2 | . 1 . 1 . . . . . . Open Door 2 | . . . . 1 . . . 1 . Unreport Threat 1 | . . . 1 . . . . . . Registered Components 1 | . . . 1 . . . . . . Garrison Registry 1 | . . . . . . . . 1 . Proto ID Catalog 1 | . . . . . 1 . . . . Fabricator Hacks . | . . . . . . . . . . Repair Station Hacks . | . . . . . . . . . . Recycling Unit Hacks . | . . . . . . . . . . Scanalyzer . | . . . . . . . . . . Garrison Access Hacks 1 | . . . . . . . 1 . . Unlock Access 1 | . . . . . . . 1 . . Unauthorized Hacks 12 | . 4 . 4 . . . 1 . 3 Terminals 10 | . 2 . 4 . . . 1 . 3 Botnet 10 | . 2 . 4 . . . 1 . 3 Fabricators . | . . . . . . . . . . Repair Stations . | . . . . . . . . . . Recycling Units 2 | . 2 . . . . . . . . Tunnel 2 | . 2 . . . . . . . . Scanalyzers . | . . . . . . . . . . Garrison Access . | . . . . . . . . . . Data Cores Recovered 3 | . . . 1 . . . 1 . 1 Used . | . . . . . . . . . . Hacking Detections 14 | . 2 . 5 . . . 2 2 3 Full Trace Events 2 | . . . 1 . . . . 1 . Feedback Events . | . . . . . . . . . . Feedback Blocked . | . . . . . . . . . . Robot Schematics Acquired . | . . . . . . . . . . Robots Built . | . . . . . . . . . . Authchips . | . . . . . . . . . . Time . | . . . . . . . . . . Total Robot Build Rating . | . . . . . . . . . . Part Schematics Acquired 2 | . 1 . 1 . . . . . . Parts Built . | . . . . . . . . . . Authchips . | . . . . . . . . . . Time . | . . . . . . . . . . Total Part Build Rating . | . . . . . . . . . . Part Studies Acquired . | . . . . . . . . . . Parts Repaired . | . . . . . . . . . . Time . | . . . . . . . . . . Parts Recycled . | . . . . . . . . . . Recycled Matter . | . . . . . . . . . . Retrieved Matter . | . . . . . . . . . . Retrieved Components . | . . . . . . . . . . Parts Scanalyzed . | . . . . . . . . . . Part Schematics Acquired . | . . . . . . . . . . Parts Damaged . | . . . . . . . . . . Bothacking | -11 -10 -10 -9 -9 -9 -8 -8 -8 -8 ------------ Run | Yrd Mat Min Mat Min Exi Min Mat Gar Mat Used RIF Installer . | . . . . . . . . . . Robots Hacked . | . . . . . . . . . . Non-combat . | . . . . . . . . . . Combat . | . . . . . . . . . . Robot Hacks Applied . | . . . . . . . . . . Relay Couplers Released 35 | . . . . . . . . 35 . Machine Destruction 35 | . . . . . . . . 35 . Fabnet Peak Effective % . | . . . . . . . . . . Robots Rewired 3 | . . . . . . . . 3 . Allies Hacked . | . . . . . . . . . . Hacks Repelled . | . . . . . . . . . . Allies | -11 -10 -10 -9 -9 -9 -8 -8 -8 -8 -------- Run | Yrd Mat Min Mat Min Exi Min Mat Gar Mat Total Allies 11 | . . 4 . 2 . . . 5 . Largest Group 5 | . . 4 4 2 2 . . 5 . Highest-Rated Group 108 | . . 71 71 50 50 . . 108 . Highest-Rated Ally 39 | . . 31 31 31 31 . . 39 . Initial Warlord ECA Mod 13 | . . . . . . . . . 13 Total Orders . | . . . . . . . . . . Ally Attacks 89 | . . . 32 . . . . 57 . Total Damage 1192 | . . . 307 . . . . 885 . Kills 14 | . . . 2 . . . . 12 . Allies Corrupted . | . . . . . . . . . . Allies Melted . | . . . . . . . . . . Intel | -11 -10 -10 -9 -9 -9 -8 -8 -8 -8 ------- Run | Yrd Mat Min Mat Min Exi Min Mat Gar Mat Active Infowar (turns) . | . . . . . . . . . . Robot Analysis Total . | . . . . . . . . . . Derelict Logs Recovered 3 | . . 1 . 2 . . . . . Drone Launches . | . . . . . . . . . . Drone Recoveries . | . . . . . . . . . . Exploration | -11 -10 -10 -9 -9 -9 -8 -8 -8 -8 ------------- Run | Yrd Mat Min Mat Min Exi Min Mat Gar Mat Turns Passed 6435 | 59 963 476 908 731 459 140 540 1474 685 Spaces Moved 3619 | 32 397 294 585 505 261 48 363 731 403 Core 2 | 2 . . . . . . . . . Treads 888 | 30 393 294 162 . . . . 9 . Legs 900 | . 4 . . . . . . 493 403 Wheels 1829 | . . . 423 505 261 48 363 229 . Hover . | . . . . . . . . . . Flight . | . . . . . . . . . . Fastest Speed 50 | 50 120 160 87 102 102 102 94 108 120 Average Speed 128 | 153 159 160 111 102 102 104 102 155 123 Slowest Speed 260 | 160 190 160 160 102 102 107 110 260 190 Overloaded Moves . | . . . . . . . . . . Propulsion Burnouts . | . . . . . . . . . . Robots Hopped . | . . . . . . . . . . Potential Cave-ins . | . . . . . . . . . . Cave-ins Triggered . | . . . . . . . . . . Exploration Rate (%) 55 | 4 81 76 62 95 62 11 39 90 34 Regions Visited 9 Branch Regions 4 Pre-discovered Areas 3 | . 2 . . . 1 . . . . Known Exits Taken 1 | . . . . . . . 1 . . Unknown Exits Taken 7 | 1 1 1 1 1 1 1 . . . Scrap Searched 1 | . . . . 1 . . . . . Spaces Dug 16 | . . . . . . . 8 . 8 Terrain Destroyed 474 | . 22 . 57 14 . 5 107 166 103 Melee . | . . . . . . . . . . Projectile 14 | . . . . 4 . 5 5 . . AOE 460 | . 22 . 57 10 . . 102 166 103 Terrain Rammed . | . . . . . . . . . . Walls Destroyed . | . . . . . . . . . . Machines Disabled . | . . . . . . . . . . Actions | -11 -10 -10 -9 -9 -9 -8 -8 -8 -8 --------- Run | Yrd Mat Min Mat Min Exi Min Mat Gar Mat Total 4846 | 39 585 298 737 688 456 110 458 935 540 Wait 613 | . 73 4 35 147 186 40 23 45 60 Move 3611 | 31 396 293 584 504 260 47 363 730 403 Hop . | . . . . . . . . . . Pick Up 71 | 2 18 . 14 10 2 3 6 6 10 Fast Attach 32 | 6 6 . 9 . . 1 3 7 . Attach 28 | . 5 . 5 2 2 . 2 8 4 Detach 2 | . . . . . 2 . . . . Swap 59 | . 3 . 10 6 . 2 11 15 12 Drop 58 | . 10 . 18 2 4 1 5 8 10 Fire 261 | . 72 1 62 17 . 16 45 29 19 Melee 78 | . . . . . . . . 56 22 Ram . | . . . . . . . . . . Kick . | . . . . . . . . . . Crush 4 | . 2 . . . . . . 2 . Escape Stasis 5 | . . . . . . . . 5 . Rewire 24 | . . . . . . . . 24 . Trap . | . . . . . . . . . . Miscellaneous . | . . . . . . . . . . Route ------- -11/Scrapyard -10/Materials (discovered 4 exits: *Mat x2 / [*Min x2]) -10/Mines -9/Materials (discovered 2 exits: *Mat / *Min) -9/Mines (discovered 4 exits: *Mat x2 / *Exi / [*Zio]) -9/Exiles -8/Mines -8/Materials (discovered 2 exits: [*Fac] / Gar) -8/Garrison (discovered 3 exits: *Mat x3) -8/Materials (discovered 1 exit: [*Fac]) History --------- Turn | Location | Event 10 | -11/Scrapyard | Discovered new exit (range 16) 60 | -11/Scrapyard | Entered Materials 180 | -10/Materials | Discovered new exit (range 16) 307 | -10/Materials | Build established: Mutant 333 | -10/Materials | Discovered new exit (range 16) 429 | -10/Materials | Lost 3 parts (1p2w) 550 | -10/Materials | Discovered new exit (range 16) 779 | -10/Materials | Discovered new exit (range 12) 1023 | -10/Materials | Entered Mines 1077 | -10/Mines | Met a Derelict bent on vengeance 1137 | -10/Mines | Assisted by bots powering up and referring to "LRC-V3" 1306 | -10/Mines | A weapon hastily lodged in a ceiling crevice suddenly fell to the ground 1372 | -10/Mines | Received a Mining Laser from a helpful Derelict 1438 | -10/Mines | Discovered new exit (range 5) 1499 | -10/Mines | Entered Materials 1499 | -9/Materials | Accompanied by 4 allies 1499 | -9/Materials | Evolved 2 slots: Propulsion x2 1653 | -9/Materials | Discovered new exit (range 15) 1914 | -9/Materials | Discovered new exit (range 15) 2045 | -9/Materials | Destroyed 7 combat bots 2407 | -9/Materials | Entered Mines 2467 | -9/Mines | Learned Materials non-interactive machine intel 2483 | -9/Mines | Discovered new exit (range 9) 2495 | -9/Mines | Met a Derelict who couldn't figure out how to use a Trap Extractor 2905 | -9/Mines | Learned Materials stockpile data 2920 | -9/Mines | Discovered new exit (range 8) 2927 | -9/Mines | Received a Rocket Launcher from a helpful Derelict 2987 | -9/Mines | Found a hidden stash of uninstalled traps 3053 | -9/Mines | A Derelict revealed a hidden shortcut to a safe place 3096 | -9/Mines | Deemed a non-threat by the Exiles lab entrance 3097 | -9/Mines | Discovered new exit (range 5) 3138 | -9/Mines | Entered Exiles 3138 | -9/Exiles | Accompanied by 2 allies 3166 | -9/Exiles | Met 8R-AWN 3168 | -9/Exiles | Led the pair of lost Derelicts to a safe place 3267 | -9/Exiles | Met EX-HEX 3406 | -9/Exiles | Met EX-BIN 3417 | -9/Exiles | Aligned with FarCom system 3418 | -9/Exiles | Given EX-Vault access code 3442 | -9/Exiles | Opened EX-Vault 3450 | -9/Exiles | Found Potential Leg 3453 | -9/Exiles | Found Potential Leg 3474 | -9/Exiles | Warned to stay clear of 0b10 Research branches 3506 | -9/Exiles | Met EX-DEC 3535 | -9/Exiles | Learned location of Zion (-7) 3583 | -9/Exiles | Discovered new exit (range 10) 3597 | -9/Exiles | Left Exiles lab with Potential Leg 3597 | -9/Exiles | Entered Mines 3723 | -8/Mines | Discovered new exit (range 6) 3737 | -8/Mines | Entered Materials 3737 | -8/Materials | Evolved 2 slots: Propulsion x1, Utility x1 3739 | -8/Materials | Loaded intel: 33 non-interactive machine locations 4020 | -8/Materials | Destroyed 13 combat bots 4264 | -8/Materials | Discovered new exit (range 16) 4277 | -8/Materials | Identified exit to Garrison 4277 | -8/Materials | Entered Garrison 4377 | -8/Garrison | Triggered checkpoint 4390 | -8/Garrison | Triggered checkpoint 4439 | -8/Garrison | Rescued a captive Derelict 4441 | -8/Garrison | Rescued a captive Derelict 4490 | -8/Garrison | Discovered new exit (range 105) 4490 | -8/Garrison | Discovered new exit (range 75) 4490 | -8/Garrison | Discovered new exit (range 38) 4654 | -8/Garrison | Triggered checkpoint 4689 | -8/Garrison | Triggered checkpoint 4722 | -8/Garrison | Lost 5 parts (1p4n) 4751 | -8/Garrison | Garrison Relay disabled 4863 | -8/Garrison | Triggered checkpoint 4898 | -8/Garrison | Garrison Relay disabled 4961 | -8/Garrison | Build established: Scavenger-Gladiator 5275 | -8/Garrison | Triggered checkpoint 5311 | -8/Garrison | Garrison Relay disabled 5351 | -8/Garrison | P-60 Hacker assimilated allied UV-WT7(h) 5455 | -8/Garrison | Garrison Relay disabled 5462 | -8/Garrison | Garrison Relay disabled 5470 | -8/Garrison | Garrison Relay disabled 5477 | -8/Garrison | Garrison Relay disabled 5671 | -8/Garrison | Garrison Relay disabled 5751 | -8/Garrison | Entered Materials 5849 | -8/Materials | Core integrity fell below 50% 6208 | -8/Materials | Discovered new exit (range 16) 6422 | -8/Materials | Core integrity fell below 20% 6436 | -8/Materials | Self-destructed Last Messages --------------- 06423_ Critical hit (Burn: +37). 06424_ U-05 Engineer lays Concrete. 06425_ Critical hit (Burn: +37). 06425_ U-05 Engineer lays Concrete. 06426_ K-01 Serf destroyed. 06426_ U-05 Engineer lays Concrete. 06427_ Penetrated by Slug. 06428_ The unstable cave ceiling collapses. 06428_ U-05 Engineer lays Concrete. 06428_ G-47 Trooper destroyed. 06428_ Terminal disabled. 06429_ The unstable cave ceiling collapses. 06429_ U-05 Engineer lays Concrete. 06430_ U-05 Engineer builds a Wall. 06430_ G-47 Trooper destroyed. 06430_ U-05 Engineer destroyed. 06433_ Penetrated by Slug. 06435_ U-05 Engineer lays Concrete. 06436_ The unstable cave ceiling collapses. 06436_ U-05 Engineer lays Concrete. Map ----- +----------------------------------------------------+ | ?????????????????????????????????????????????????? | | ?????????????????????????????????????????????????? | | ?????????????????????????????????????????????????? | | ?????????????????????????????????????????????????? | | ?????????????????????????????????????????????????? | | ?????????????????????????????????????????????????? | | ?????????????????????????????????????????????????? | | ?????????????????????????????????????????????????? | | ?????????????????????????????????????????????????? | | ?????????????????????????? ??????????? #?????????? | | ?????????????????????????? ??????????? #?????????? | | ?????????????????????????? ??????????? #?????????? | | ?????????????????????????? ??????????? #?????????? | | ???????????????????????### ###???????? #?????????? | | ???????????????????????# #??######/###???????? | | ???????????????????????# #??# #???????? | | ???????????????????????# #??# #???????? | | ?????????????#?????????? ???# ! #???##### | | ????????????## ??????? ???# #???#[[! | | ???????????? + "??????# #?### #???#[[ | | ?????????????# a ?????# ## ## #???# | | ?????????????# [ ???#k # #?# ##### | | ?????????????# ## #### + | | ?????????????# # ## !* ### ##+## | | ??????????????# # # u# ######+####?# # | | ??????????????# @ ####### =%= #??#=# | | ?????????????# % #### # "" | | ?????????????# x ! %!# "" | | ?????????????# ###### "" | | ????????????# ####### #????# | | ???????????? % ## ????################ | | ????????????# % [ ???????????# ??? | | ???????????? = ????????????# """"?? | | ????????????? =! ????????????#[ """""? | | ????????????? #%! ???????????# """""# | | ??????????????###=* # ???????????# """""# | | ????????????????# # """"" ???????????# """""# | | ???????????????? ?# """"" ???????????# """""# | | ????????????????????# ????? #??????????# "%"""# | | ??????????????????????????? #??????????# # | | ?????????????????????????????????############+#### | | ?????????????????????????????????# # | | ?????????????????????????????????# " """ # ### | | ?????????????????????????????????# [" """ # #?? | | ?????????????????????????????????# " """ + #?? | | ?????????????????????????????????# # #?? | | ?????????????????????????????????# # / #?? | | ?????????????????????????????????# "T" #= *### | | ?????????????????????????????????# # | | ?????????????????????????????????########### | +----------------------------------------------------+ Best States ------------- Heat Dissipation 31 Energy Generation 15 Energy Capacity 265 Matter Stores 300 Matter Capacity 300 Sight Range 16 Terrain Scan Density 10 Armor Coverage 225 Evasion (%) 55 Targeting Accuracy 6 Melee Accuracy 6 Recoil Reduction 3 Offensive Hacking 10 Defensive Hacking 10 Item Schematics ----------------- Hcp. Storage Unit | -10/Materials | Hacked Huge Storage Unit | -9/Materials | Hacked Robot Schematics ------------------ None Fabricated ------------ Nothing Repaired ---------- Nothing Studied --------- None Alien Tech Used ----------------- None Achievements -------------- None Challenges ------------ None Game ------ Seed LightElectronDiverter Manual? 0 Play Time 00:38:15 Cumulative 415.8 hours Start 2026.07.04 @ 17:24:39 End 2026.07.04 @ 18:07:06 Sessions 1 Manual Loads 0 Difficulty Rogue Special Mode None Game No. 378 Rogue 378 Adventurer 0 Explorer 0 Win Type - Total 11 Types 7/0/2/1/0/0/0/0/0/1 Lore% 61 Gallery% 68 Achievement% 63 Wizard Run 0 Options --------- Layout 1 ASCII 0 Keyboard 0 Movement Mouse Keybinds 0 Fullscreen 2 Font 24/Smallcaps Map View 50x35 Zoom Use 18% Tactical HUD 1 Map Filters NONE Filters NONE Steam 1 RUN: 29ffce26-5d47-49de-9248-930ddc250f83